Cogmind - Beta 13 @@@ ROGUE MODE // 2024.04.29 @ 14:36:58 Player: szymekc Result: Destroyed by G-47 Trooper with Particle Gun Performance ------------- Evolutions (0) 0 Regions Visited (1) 200 Robots Destroyed (17) 85 Value Destroyed (438) 438 Prototype IDs (0) 0 Alien Tech Used (0) 0 Bonus (0) 0 TOTAL SCORE: 723 Bonus ------- None Cogmind --------- Core Integrity 0/250 Matter 300/300 Energy 100/100 System Corruption 1% Temperature Cool (9) Movement Core (350) Ox6 Location -10/Materials Parts ------- > --- POWER (1) -------- (None) > --- PROPULSION (2) --- (None) > --- UTILITY (2) ------ Large Storage Unit Core Shielding > --- WEAPON (2) ------- (None) > --- INVENTORY (15) --- Light Ion Engine Light Ion Engine Light Treads Heat Sink Huge Storage Unit High-capacity Matter Pod (200) Peak State ------------ > --- POWER ------------ Ion Engine > --- PROPULSION ------- Light Treads Light Treads > --- UTILITY ---------- Small Storage Unit Huge Storage Unit > --- WEAPON ----------- Assault Rifle Hammer > --- INVENTORY -------- Light Ion Engine Aluminum Leg Aluminum Leg Wheel Compact Wheel High-capacity Matter Pod Small Laser Small Laser [Rating: 7] Favorites ----------- Power Ion Engine Engine Ion Engine Propulsion Light Treads Treads Light Treads Leg Aluminum Leg Wheel Wheel Utility Huge Storage Unit Device Heat Sink Storage Huge Storage Unit Protection Core Shielding Weapon Hammer Energy Gun Small Laser Ballistic Gun Assault Rifle Impact Weapon Hammer Build | -11 -10 ------- Run | Yrd Mat Slots Evolved . | . . Power . | . . Propulsion . | . . Utility . | . . Weapon . | . . Parts Attached 17 | . 17 Power 2 | . 2 Engine 2 | . 2 Core . | . . Reactor . | . . Propulsion 4 | . 4 Treads 2 | . 2 Leg . | . . Wheel 2 | . 2 Hover . | . . Flight . | . . Utility 4 | . 4 Device 1 | . 1 Storage 2 | . 2 Processor . | . . Hackware . | . . Protection 1 | . 1 Artifact . | . . Weapon 7 | . 7 Energy Gun 2 | . 2 Energy Cannon . | . . Ballistic Gun 3 | . 3 Ballistic Cannon . | . . Launcher . | . . Special Weapon . | . . Impact Weapon 2 | . 2 Slashing Weapon . | . . Piercing Weapon . | . . Special Melee Weapon . | . . Unidentified Prototypes . | . . Parts Lost 10 | . 10 Power 2 | . 2 Propulsion 4 | . 4 Utility . | . . Weapon 4 | . 4 Highest Loss Streak 8 | . 8 To Critical Strikes . | . . Average Slot Usage (%) 88 | . 88 Engine 13 | . 13 Treads 25 | . 25 Device 4 | . 4 Storage 14 | . 14 Protection 1 | . 1 Energy Gun 8 | . 8 Ballistic Gun 8 | . 8 Impact Weapon 10 | . 10 Naked Turns . | . . Heaviest Build 89 | 13 89 Greatest Support 40 | 20 40 Greatest Overweight (x) 2 | . 2 Average Overweight (x) . | . . Largest Inventory Capacity 25 | 8 25 Average Capacity 19 | 8 19 Most Carried 12 | 6 12 Average Carried 7 | 6 7 Final Capacity 15 | 8 15 Final Carried 6 | 6 6 Class Distribution -------------------- 100% | Mutant Dominant Class ---------------- Mutant | -10/Materials Resources | -11 -10 ----------- Run | Yrd Mat Matter Collected 560 | 200 360 Remotely . | . . Salvage Created 587 | . 587 Parts 23 | . 23 Haulers Intercepted 1 | . 1 Recyclers Shooed . | . . Parts Field Recycled . | . . Retrieved Matter . | . . Parts Self-Destructed . | . . Prevented . | . . Kills | -11 -10 ------- Run | Yrd Mat Combat Hostiles Destroyed 13 | . 13 Melee 5 | . 5 Guns 4 | . 4 Classes Destroyed 6 | . 6 Tunneler 1 | . 1 Hauler 1 | . 1 Recycler 1 | . 1 Operator 1 | . 1 Swarmer 2 | . 2 Grunt 11 | . 11 Best Kill Streak 4 | . 4 Combat Bots Only 3 | . 3 Max Kills in Single Turn 1 | . 1 Gunslinging . | . . Exploded . | . . Melee 1 | . 1 Uniques/NPCs Destroyed . | . . Combat | -11 -10 -------- Run | Yrd Mat Hostile Shots Fired 140 | . 140 Missed 31 | . 31 Damage Taken 1347 | . 1347 Core 261 | . 261 Absorbed by Shields . | . . Redirected to Shielding 37 | . 37 Core Remaining (%) 100 | 100 . Volleys Fired 31 | . 31 Largest 2 | . 2 Hottest 80 | . 80 Shots Fired 40 | . 40 Gun 40 | . 40 Cannon . | . . Launcher . | . . Special . | . . Kinetic 27 | . 27 Thermal 13 | . 13 Explosive . | . . Electromagnetic . | . . Robot Hit Streak 6 | . 6 Robot Miss Streak 3 | . 3 Penetration Max . | . . Secondary Targets 1 | . 1 Max Gunslinging Chain 1 | . 1 Shots Hit Robots 65 | . 65 Core Hits 16 | . 16 Critical Kills 2 | . 2 Critical Parts Destroyed 6 | . 6 Critical Strikes 8 | . 8 Smash 8 | . 8 Melee Attacks 55 | . 55 Impact 55 | . 55 Slashing . | . . Piercing . | . . Sneak Attacks 7 | . 7 Combat Hostiles . | . . Follow-up Attacks . | . . Damage Inflicted 1478 | . 1478 Guns 309 | . 309 Cannons . | . . Explosions . | . . Melee 1167 | . 1167 Ramming 2 | . 2 Kinetic 197 | . 197 Thermal 112 | . 112 Explosive . | . . Electromagnetic . | . . Impact 1167 | . 1167 Slashing . | . . Piercing . | . . Highest Corruption 1 | . 1 Average Corruption 1 | . 1 Corruption Purged . | . . Corruption Blocked . | . . Overload Shots . | . . Overflow Damage 267 | . 267 Projectiles . | . . Explosions . | . . Melee 267 | . 267 Knockbacks 6 | . 6 Impact 6 | . 6 Kinetic . | . . Secondary . | . . Self-Inflicted Damage . | . . Shots . | . . Rammed 5 | . 5 Targets Rammed 5 | . 5 Kicked . | . . Crushed . | . . Highest Temperature 30 | . 30 Average Temperature 11 | . 11 Received Heat Transfer 714 | . 714 Siege Activations . | . . Robots Corrupted . | . . Combat Hostiles . | . . Parts Fried 8 | . 8 Impact Corruptions 11 | . 11 Robots Melted . | . . Combat Hostiles . | . . Parts Melted . | . . Heat Transferred 225 | . 225 Parts Sabotaged . | . . Parts Stolen . | . . Parts Stripped . | . . Power Chain Reactions . | . . Alert | -11 -10 ------- Run | Yrd Mat Peak Influence 175 | . 175 Initial . | . . Average 63 | . 63 Maximum Alert Level . | . . Low Security (%) 100 | 100 100 Level 1 . | . . Level 2 . | . . Level 3 . | . . Level 4 . | . . Level 5 . | . . High Security . | . . Max Security . | . . Squads Dispatched 4 | . 4 Investigation 2 | . 2 Extermination . | . . Reinforcement 2 | . 2 Assault . | . . Garrison . | . . Intercept . | . . Searches Triggered . | . . Construction Impeded . | . . Haulers Reinforced . | . . Active Scanning Responses . | . . Cargo Convoy Interrupts . | . . Stealth | -11 -10 --------- Run | Yrd Mat Distress Signals 2 | . 2 Communications Jammed . | . . Distress Signals . | . . Times Spotted 25 | . 25 Peak Tracking Total 4 | . 4 Tactical Retreats . | . . Traps | -11 -10 ------- Run | Yrd Mat Traps Triggered 1 | . 1 Indirectly . | . . Trap Hack Attempts . | . . Triggered . | . . Disarmed . | . . Reprogrammed . | . . Reused . | . . Traps Extracted . | . . Installed . | . . Triggered . | . . Machines | -11 -10 ---------- Run | Yrd Mat Machines Disabled . | . . Max in Single Turn . | . . Machines Repaired . | . . Machines Dismantled . | . . Machines Sabotaged . | . . Overloaded Fab Kills . | . . Hacking | -11 -10 --------- Run | Yrd Mat Machines Accessed 4 | . 4 Terminals 3 | . 3 Fabricators . | . . Repair Stations . | . . Recycling Units 1 | . 1 Scanalyzers . | . . Garrison Access . | . . Total Hacks 16 | . 16 Successful 11 | . 11 Failed 5 | . 5 Catastrophic . | . . Database Lockouts . | . . Manual 7 | . 7 Terminals 14 | . 14 Fabricators . | . . Repair Stations . | . . Recycling Units 2 | . 2 Scanalyzers . | . . Garrison Access . | . . Terminal Hacks 9 | . 9 Robot Analysis 3 | . 3 Branch Access Points 1 | . 1 Emergency Access Points 1 | . 1 Unreport Threat 1 | . 1 Locate Traps 1 | . 1 Security Status 1 | . 1 Registered Prototypes 1 | . 1 Fabricator Hacks . | . . Repair Station Hacks . | . . Recycling Unit Hacks 1 | . 1 Retrieve Components 1 | . 1 Scanalyzer . | . . Garrison Access Hacks . | . . Unauthorized Hacks 1 | . 1 Terminals . | . . Fabricators . | . . Repair Stations . | . . Recycling Units 1 | . 1 Tunnel 1 | . 1 Scanalyzers . | . . Garrison Access . | . . Data Cores Recovered . | . . Used . | . . Hacking Detections 3 | . 3 Full Trace Events . | . . Feedback Events . | . . Feedback Blocked . | . . Robot Schematics Acquired . | . . Robots Built . | . . Authchips . | . . Time . | . . Total Robot Build Rating . | . . Part Schematics Acquired . | . . Parts Built . | . . Authchips . | . . Time . | . . Total Part Build Rating . | . . Parts Repaired . | . . Time . | . . Parts Recycled . | . . Recycled Matter . | . . Retrieved Matter . | . . Retrieved Components 1 | . 1 Parts Scanalyzed . | . . Part Schematics Acquired . | . . Parts Damaged . | . . Bothacking | -11 -10 ------------ Run | Yrd Mat Used RIF Installer . | . . Robots Hacked . | . . Non-combat . | . . Combat . | . . Robot Hacks Applied . | . . Relay Couplers Released . | . . Fabnet Peak Effective % . | . . Robots Rewired . | . . Allies Hacked . | . . Hacks Repelled . | . . Allies | -11 -10 -------- Run | Yrd Mat Total Allies . | . . Largest Group . | . . Highest-Rated Group . | . . Highest-Rated Ally . | . . Total Orders . | . . Ally Attacks . | . . Total Damage . | . . Kills . | . . Allies Corrupted . | . . Allies Melted . | . . Intel | -11 -10 ------- Run | Yrd Mat Robot Analysis Total 3 | . 3 Derelict Logs Recovered . | . . Drone Launches . | . . Drone Recoveries . | . . Exploration | -11 -10 ------------- Run | Yrd Mat Turns Passed 1128 | 5 1123 Spaces Moved 362 | 5 357 Core . | . . Treads 344 | . 344 Legs 11 | 5 6 Wheels 7 | . 7 Hover . | . . Flight . | . . Fastest Speed 105 | 120 105 Average Speed 230 | 120 231 Slowest Speed 320 | 120 320 Overloaded Moves . | . . Propulsion Burnouts . | . . Robots Hopped . | . . Cave-ins Triggered . | . . Exploration Rate (%) 32 | 2 62 Regions Visited 1 Branch Regions . Pre-discovered Areas 1 | . 1 Known Exits Taken . | . . Unknown Exits Taken 1 | 1 . Scrap Searched . | . . Spaces Dug 5 | . 5 Terrain Destroyed 5 | . 5 Melee 5 | . 5 Projectile . | . . AOE . | . . Terrain Rammed . | . . Walls Destroyed . | . . Machines Disabled . | . . Actions | -11 -10 --------- Run | Yrd Mat Total 511 | 4 507 Wait 24 | . 24 Move 361 | 4 357 Hop . | . . Pick Up 9 | . 9 Fast Attach 4 | . 4 Attach 7 | . 7 Detach 1 | . 1 Swap 6 | . 6 Drop 8 | . 8 Fire 31 | . 31 Melee 55 | . 55 Ram 5 | . 5 Kick . | . . Crush . | . . Escape Stasis . | . . Rewire . | . . Trap . | . . Miscellaneous . | . . Route ------- -11/Scrapyard -10/Materials (discovered 3 exits: [*Mat] / *Min x2) History --------- Turn | Location | Event 1 | -11/Scrapyard | Discovered new exit (range 3) 6 | -11/Scrapyard | Entered Materials 6 | -10/Materials | Discovered new exit (range 14) 53 | -10/Materials | Identified exit to Mines 311 | -10/Materials | Build established: Mutant 432 | -10/Materials | Discovered new exit (range 10) 1088 | -10/Materials | Core integrity fell below 50% 1120 | -10/Materials | Core integrity fell below 20% 1129 | -10/Materials | Destroyed by G-47 Trooper with Particle Gun Last Messages --------------- No active security squads found. 01059_ Lgt. Treads destroyed. 01072_ K-01 Serf cleans the Terminal. 01083_ Com. Wheel destroyed. 01089_ Critical hit (Burn: +37). 01092_ Wheel destroyed. 01093_ G-47 Trooper suffers critical hit (Smash). 01093_ Destroyed Lgt. Nuclear Core. 01093_ G-47 Trooper system corrupted by crushing effect. 01093_ Hammer destroyed. 01096_ Slammed into G-47 Trooper. 01097_ Ion Engine destroyed. 01103_ G-47 Trooper IFF system glitched. 01111_ Lgt. Assault Rifle destroyed. 01115_ Ion Engine destroyed. 01117_ Lgt. Assault Rifle destroyed. 01118_ Slammed into G-47 Trooper. 01122_ Destabilizing: System corrupted (+1). 01123_ G-47 Trooper misfires. 01125_ Slammed into G-47 Trooper. Map ----- +----------------------------------------------------+ | #????????????^??????????????????????????????? | | / ??????????^??????????????????????????????? | | ####?????????^??????????????????????????????? | | #???????????????????????????????????????????? | | #???????????????????????????????????????????? | | ????????????????????????????????????????????? | | ???????????????????????????????##???????????? | | ??????????????????????????????? ???????????? | | ??????????????????????????????? ???????????? | | ??????????????????????????????? ???????????? | | ??????????????????? ??????????# ???????????? | | ?????????????????? ##????###?# #??????????? | | ??????######?????# # ??? #?# ###????????? | | #+## ##????? # ??""" +? #????????? | | ???? # """"" #?# +????????? | | > ????? # """"" #?# #????????? | | ???? # """"" #?# #????????? | | #+## # ?"""" # """"" #?# #????????? | | ?????????" # """"" # """"" ### #????????? | | ???????????# """"" # """"" + #????????? | | ???????????# # ###% #????????? | | ???????????# # #?# #????????? | | ???????????# """"" # ### ##???????? | | ???????????# """"" k##+####### #???????? | | ???????????# """"" k w ## *??? | | ???????????# uw @ g T ]]#? | | ???????????# a % g ## ]]#? | | ???????????# ########+####### #??#####? | | ???????????# ## !% #????#######???????? | | ?????####### ## """#??????????????????? | | ????##! !!## ## """#??????????????????? | | ????#! !# ## """##?????????????????? | | ????# # ## =#######????????????? | | ##### # ###########%[ #????????????? | | = #????????????? | | [[ #????????????? | | """ = #????????????? | | """ ################## #????????????? | | """ #[ #???????#"# ##????????????? | | """ # """ #???????### #?????????????? | | + """ !#?????????# #?????????????? | | # """ #????????? /?????????????? | | #### + #?????????# #?????????????? | | #?## #########?????????# #?????????????? | | #########?????????????????# #?????????????? | | ######### ????? ?????????????? | | + ????? ?????????????? | | # ????? ????????????? | | # ?????####+#????????????? | | + ????????????????????????? | +----------------------------------------------------+ Best States ------------- Heat Dissipation 35 Energy Generation 10 Energy Capacity 250 Matter Stores 300 Matter Capacity 300 Sight Range 16 Terrain Scan Density 10 Core Shielding 20 Evasion (%) 45 Recoil Reduction 2 Item Schematics ----------------- None Robot Schematics ------------------ None Fabricated ------------ Nothing Alien Tech Used ----------------- None Achievements -------------- None Challenges ------------ None Game ------ Seed AngularEnergyTrap Manual? 0 Play Time 00:12:11 Cumulative 236.0 hours Start 2024.04.29 @ 14:30:34 End 2024.04.29 @ 14:36:58 Sessions 1 Manual Loads 0 Difficulty Rogue Special Mode None Game No. 87 Rogue 85 Adventurer 2 Explorer 0 Win Type - Total 5 Types 4/0/0/1/0/0/0/0/0 Lore% 74 Gallery% 81 Achievement% 68 Wizard Run 0 Options --------- Layout 0 ASCII 0 Keyboard 0 Movement Numpad Keybinds 0 Fullscreen 2 Font 24/Smallcaps Map View 76x50 Zoom Use 0% Tactical HUD 1 Map Filters NONE Filters NONE Steam 1 RUN: d9381b54-7411-4831-98c9-6f96f9a3b661